fUST/lending_fUST_20250203
["ID","MTS","AMOUNT","RATE_DAILY","PERIOD"]
[351399046,1738553466774,-500.0,0.00016438,2]
[351399047,1738553466784,-500.0,0.00016438,2]
[351399048,1738553466794,-19.0,0.00016712,2]
[351399049,1738553466927,-481.0,0.00016712,2]
[351399050,1738553466936,-95.98082936,0.00016849,2]
[351399051,1738553466946,-175.15318485,0.00016849,2]
[351399052,1738553466957,-500.0,0.00016849,2]
[351399053,1738553466968,-500.0,0.00016849,2]
[351399054,1738553466978,-346.88944146,0.00016849,2]
[351399055,1738553466991,-153.11055854,0.00016849,2]
[351399056,1738553467002,-500.0,0.00016849,2]
[351399057,1738553467012,-523.34710049,0.00016849,2]
[351399058,1738553467023,-500.0,0.00016849,2]
[351399059,1738553467033,-500.0,0.00016849,2]
[351399060,1738553467043,-500.0,0.00016849,2]
[351399061,1738553467053,-701.3,0.00016849,2]
[351399062,1738553467069,-500.0,0.00016849,2]
[351399063,1738553467079,-637.67259341,0.00016849,2]
[351399064,1738553467089,-1443.16,0.00016849,2]
[351399065,1738553467099,-500.0,0.00016849,2]
[351399066,1738553467110,-500.0,0.00016849,2]
[351399068,1738553467120,-475.74947999,0.00016849,2]
[351399069,1738553467131,-500.0,0.00016849,2]
[351399070,1738553467142,-500.0,0.00016849,2]
[351399071,1738553467151,-2094.72,0.00016849,2]
[351399072,1738553467161,-3942.0,0.00016849,2]
[351399073,1738553467171,-500.0,0.00016849,2]
[351399074,1738553467180,-500.0,0.00016849,2]
[351399075,1738553467190,-500.0,0.00016849,2]
[351399076,1738553467201,-1728.93,0.00016849,2]
[351399077,1738553467213,-500.0,0.00016849,2]
[351399078,1738553467223,-715.03391895,0.00016849,2]
[351399079,1738553467235,-78.18608105,0.00016849,2]
[351399080,1738553467246,-500.0,0.00016849,2]
[351399081,1738553467257,-500.0,0.00016849,2]
[351399082,1738553467266,-500.0,0.00016849,2]
[351399083,1738553467276,-500.0,0.00016849,2]
[351399084,1738553467286,-500.0,0.00016849,2]
[351399085,1738553467296,-500.0,0.00016849,2]
[351399086,1738553467305,-500.0,0.00016849,2]
[351399087,1738553467320,-500.0,0.00016849,2]
[351399088,1738553467330,-500.0,0.00016849,2]
[351399089,1738553467340,-152.45148169,0.00016849,2]
[351399090,1738553467523,-500.0,0.00016438,2]
[351399091,1738553467534,-133.25,0.00016438,2]
[351399092,1738553467567,-368.5492029,0.00016438,2]
[351399093,1738553467576,-243.4557811,0.00016849,2]
[351399094,1738553467588,-339.59273721,0.00016849,2]
[351399095,1738553467598,-1862.19,0.00016849,2]
[351399096,1738553467607,-151.0,0.00016849,2]
[351399097,1738553467618,-505.02438792,0.00016849,2]
[351399098,1738553467628,-500.0,0.00016849,2]
[351399099,1738553467638,-500.0,0.00016849,2]
[351399100,1738553467647,-500.0,0.00016849,2]
[351399101,1738553467656,-500.0,0.00016849,2]
[351399102,1738553467665,-258.21994564,0.00016849,2]
[351399103,1738553467675,-500.0,0.00016849,2]
[351399104,1738553467684,-507.77841649,0.00016849,2]
[351399105,1738553467693,-475.78226451,0.00016849,2]
[351399106,1738553467702,-157.33430411,0.00016849,2]
[351399107,1738553467712,-581.29069021,0.00016849,2]
[351399108,1738553467722,-500.0,0.00016849,2]
[351399109,1738553467732,-500.0,0.00016849,2]
[351399110,1738553467742,-604.63,0.00016849,2]
[351399111,1738553467752,-1052.41,0.00016849,2]
[351399112,1738553467761,-500.0,0.00016849,2]
[351399114,1738553467771,-500.0,0.00016849,2]
[351399115,1738553467781,-1830.33,0.00016849,2]
[351399116,1738553467791,-500.0,0.00016849,2]
[351399117,1738553467801,-605.32,0.00016849,2]
[351399118,1738553467813,-151.0,0.00016849,2]
[351399119,1738553467823,-500.0,0.00016849,2]
[351399120,1738553467832,-456.78622391,0.00016849,2]
[351399121,1738553467863,-44.42473323,0.00016849,2]
[351399122,1738553467873,-500.0,0.00016849,2]
[351399123,1738553467882,-500.0,0.00016849,2]
[351399124,1738553467892,-1459.64,0.00016849,2]
[351399125,1738553467901,-515.5626792,0.00016849,2]
[351399126,1738553467911,-500.0,0.00016849,2]
[351399127,1738553467922,-500.0,0.00016873,2]
[351399128,1738553467931,-500.0,0.00016873,2]
[351399129,1738553467941,-500.0,0.00016873,2]
[351399130,1738553467951,-500.0,0.00016873,2]
[351399131,1738553467961,-500.0,0.00016873,2]
[351399132,1738553467970,-521.47783766,0.00016873,2]
[351399133,1738553467980,-500.0,0.00016873,2]
[351399134,1738553467989,-1568.50279563,0.000169,2]
[351399136,1738553468293,-503.70046805,0.00016438,2]
[351399137,1738553468303,-500.0,0.00016438,2]
[351399138,1738553468316,-152.0,0.00016506,2]
[351399139,1738553468326,-8492.99720437,0.000169,2]
[351399140,1738553468335,-210.20767418,0.000169,2]
[351399141,1738553468345,-500.0,0.00016973,2]
[351399142,1738553468459,-500.0,0.00016973,2]
[351399143,1738553468469,-500.0,0.00016973,2]
[351399144,1738553468479,-500.0,0.00016973,2]
[351399145,1738553468489,-500.0,0.00016973,2]
[351399146,1738553468499,-160.0,0.00016985,2]
[351399147,1738553468509,-500.0,0.00016986,2]
[351399148,1738553468519,-506.30643118,0.00016986,2]
[351399149,1738553468529,-500.0,0.00016986,2]
[351399150,1738553468539,-227.18814042,0.00016986,2]
[351399151,1738553468549,-500.0,0.00016986,2]
[351399152,1738553468558,-402.3773098,0.00016986,2]
[351399153,1738553468569,-174.0172677,0.00016986,2]
[351399154,1738553468581,-325.9827323,0.00016986,2]
[351399155,1738553468591,-500.0,0.00016986,2]
[351399157,1738553468600,-158.82145119,0.00016986,2]
[351399158,1738553468611,-341.17854881,0.00016986,2]
[351399159,1738553468620,-500.0,0.00016986,2]
[351399160,1738553468631,-424.99251119,0.00016986,2]
[351399161,1738553468643,-75.00748881,0.00016986,2]
[351399162,1738553468653,-500.0,0.00016986,2]
[351399163,1738553468663,-500.0,0.00016986,2]
[351399164,1738553468673,-500.0,0.00016986,2]
[351399165,1738553468683,-525.90122857,0.00016986,2]
[351399166,1738553468692,-500.0,0.00016986,2]
[351399167,1738553468702,-500.0,0.00016986,2]
[351399168,1738553468711,-500.0,0.00016986,2]
[351399169,1738553468721,-510.61517089,0.00016986,2]
[351399170,1738553468731,-505.38179914,0.00016986,2]
[351399171,1738553468740,-500.0,0.00016986,2]
[351399172,1738553468749,-500.0,0.00016986,2]
[351399173,1738553468759,-500.0,0.00016986,2]
[351399174,1738553468768,-500.0,0.00016986,2]
[351399175,1738553468778,-500.0,0.00016986,2]
[351399176,1738553468787,-505.65156173,0.00016986,2]
[351399177,1738553468796,-500.0,0.00016986,2]
[351399178,1738553468806,-500.0,0.00016986,2]
[351399179,1738553468819,-500.0,0.00016986,2]
[351399180,1738553468828,-500.0,0.00016986,2]
[351399181,1738553468838,-500.0,0.00016986,2]
[351399182,1738553468848,-500.0,0.00016986,2]
[351399183,1738553468858,-182.2316677,0.00016986,2]
[351399184,1738553468868,-438.00458953,0.00016986,2]
[351399185,1738553468878,-500.0,0.00016986,2]
[351399186,1738553468887,-500.0,0.00016986,2]
[351399187,1738553468897,-500.0,0.00016986,2]
[351399188,1738553468907,-500.0,0.00016986,2]
[351399189,1738553468916,-500.0,0.00016986,2]
[351399190,1738553468926,-634.37390649,0.00016986,2]
[351399191,1738553468936,-500.0,0.00016986,2]
[351399192,1738553468945,-500.0,0.00016986,2]
[351399193,1738553468955,-500.0,0.00016986,2]
[351399194,1738553468964,-500.0,0.00016986,2]
[351399195,1738553468974,-151.0,0.00016986,2]
[351399196,1738553468984,-500.0,0.00016986,2]
[351399197,1738553468994,-151.0,0.00016986,2]
[351399198,1738553469004,-151.0,0.00016986,2]
[351399199,1738553469014,-151.0,0.00016986,2]
[351399200,1738553469023,-500.0,0.00016986,2]
[351399201,1738553469033,-260.513532,0.00016986,2]
[351399202,1738553469043,-187.87279753,0.00016986,2]
[351399203,1738553469052,-260.513532,0.00016986,2]
[351399204,1738553469063,-200.276147,0.00016986,2]
[351399205,1738553469072,-500.0,0.00016986,2]
[351399206,1738553469083,-200.276147,0.00016986,2]
[351399207,1738553469092,-500.0,0.00016986,2]
[351399208,1738553469101,-500.0,0.00016986,2]
[351399209,1738553469111,-524.82066842,0.00016986,2]
[351399210,1738553469119,-500.0,0.00016986,2]
[351399211,1738553469130,-500.0,0.00016986,2]
[351399212,1738553469139,-542.54555524,0.00016986,2]
[351399213,1738553469150,-497.13303781,0.00016986,2]
[351399300,1738553534683,153.293601,0.0001764,15]
[351399672,1738553819431,1000.0,0.0001779,14]
[351399710,1738553844115,1006.65,0.00018,30]
[351399840,1738553954207,153.293601,0.0001764,15]
[351399938,1738554037367,196.829716,0.00013973,2]
[351400292,1738554293409,5000.0,0.00015011,2]
[351400376,1738554348089,-166.0,0.00015437,2]
[351400377,1738554348111,-4462.5463093,0.00015541,2]
[351400378,1738554348134,-500.0,0.00015753,2]
[351400379,1738554348156,-252.24638924,0.00016338,2]
[351400380,1738554348178,-252.24638923,0.00016407,2]
[351400381,1738554348200,-300.0,0.00016436,2]
[351400382,1738554348223,-194.71853898,0.00016437,2]
[351400383,1738554348243,-166.18496616,0.00016437,2]
[351400384,1738554348267,-500.0,0.00016437,2]
[351400385,1738554348289,-214.93951282,0.00016437,2]
[351400387,1738554348317,-358.83646619,0.00016437,2]
[351400388,1738554348340,-500.0,0.00016437,2]
[351400389,1738554348365,-500.0,0.00016437,2]
[351400390,1738554348388,-550.62776444,0.00016437,2]
[351400391,1738554348412,-500.0,0.00016437,2]
[351400392,1738554348437,-500.0,0.00016437,2]
[351400393,1738554348461,-384.58943379,0.00016437,2]
[351400394,1738554348486,-423.06022298,0.00016437,2]
[351400396,1738554348508,-75149.1120726,0.00016437,2]
[351400397,1738554348530,-500.0,0.00016437,2]
[351400398,1738554348558,-195.81485105,0.00016437,2]
[351400399,1738554348581,-500.0,0.00016437,2]
[351400400,1738554348604,-500.0,0.00016437,2]
[351400401,1738554348626,-500.0,0.00016437,2]
[351400402,1738554348648,-154.57822769,0.00016437,2]
[351400403,1738554348672,-500.0,0.00016438,2]
[351400404,1738554348695,-505.68455766,0.00016438,2]
[351400405,1738554348720,-500.0,0.00016438,2]
[351400406,1738554348743,-504.18311815,0.00016438,2]
[351400407,1738554348766,-613.93480986,0.00016438,2]
[351400408,1738554348788,-500.0,0.00016438,2]
[351400409,1738554348814,-500.4711566,0.00016438,2]
[351400410,1738554348835,-502.2665807,0.00016438,2]
[351400411,1738554348856,-502.05213973,0.00016438,2]
[351400412,1738554348877,-512.02638768,0.00016438,2]
[351400413,1738554348898,-500.0,0.00016438,2]
[351400414,1738554348920,-500.0,0.00016438,2]
[351400415,1738554348942,-500.0,0.00016438,2]
[351400416,1738554349135,-506.83525147,0.00016438,2]
[351400417,1738554349158,-500.0,0.00016438,2]
[351400418,1738554349180,-500.0,0.00016438,2]
[351400419,1738554349202,-500.0,0.00016438,2]
[351400420,1738554349223,-500.0,0.00016438,2]
[351400421,1738554349246,-516.8597941,0.00016438,2]
[351400422,1738554349269,-168.44032883,0.00016438,2]
[351400423,1738554349291,-500.0,0.00016438,2]
[351400424,1738554349317,-500.0,0.00016438,2]
[351400425,1738554349338,-501.64110018,0.00016438,2]
[351400426,1738554349359,-500.0,0.00016438,2]
[351400427,1738554349379,-500.0,0.00016438,2]
[351400428,1738554349398,-500.0,0.00016438,2]
[351400429,1738554349417,-500.0,0.00016438,2]
[351400430,1738554349439,-501.16457703,0.00016438,2]
[351400431,1738554349460,-500.0,0.00016438,2]
[351400432,1738554349483,-500.0,0.00016438,2]
[351400433,1738554349507,-500.0,0.00016438,2]
[351400434,1738554349531,-500.0,0.00016438,2]
[351400435,1738554349556,-571.66603274,0.00016438,2]
[351400436,1738554349578,-500.0,0.00016438,2]
[351400437,1738554349600,-501.93759553,0.00016438,2]
[351400438,1738554349621,-501.91206606,0.00016438,2]
[351400439,1738554349642,-507.35599046,0.00016438,2]
[351400440,1738554349662,-500.0,0.00016438,2]
[351400441,1738554349683,-503.02514108,0.00016438,2]
[351400442,1738554349704,-500.0,0.00016438,2]
[351400443,1738554349724,-500.0,0.00016438,2]
[351400444,1738554349745,-647.54424529,0.00016438,2]
[351400445,1738554349764,-500.0,0.00016438,2]
[351400446,1738554349784,-500.0,0.00016438,2]
[351400447,1738554349806,-501.79653235,0.00016438,2]
[351400448,1738554349828,-500.0,0.00016438,2]
[351400449,1738554349850,-500.0,0.00016438,2]
[351400450,1738554349870,-500.0,0.00016438,2]
[351400451,1738554349890,-502.59962938,0.00016438,2]
[351400452,1738554349911,-500.0,0.00016438,2]
[351400453,1738554349933,-500.7050517,0.00016438,2]
[351400454,1738554349954,-500.0,0.00016438,2]
[351400455,1738554349975,-500.0,0.00016438,2]
[351400456,1738554349996,-500.0,0.00016438,2]
[351400457,1738554350016,-500.0,0.00016438,2]
[351400458,1738554350037,-500.0,0.00016438,2]
[351400459,1738554350064,-500.0,0.00016438,2]
[351400460,1738554350085,-500.0,0.00016438,2]
[351400461,1738554350108,-268.26383172,0.00016438,2]
[351400462,1738554350129,-500.0,0.00016438,2]
[351400463,1738554350153,-500.0,0.00016438,2]
[351400464,1738554350174,-500.0,0.00016438,2]
[351400465,1738554350196,-505.06849406,0.00016438,2]
[351400466,1738554350217,-500.0,0.00016438,2]
[351400467,1738554350238,-500.87462917,0.00016438,2]
[351400468,1738554350259,-500.0,0.00016438,2]
[351400469,1738554350280,-500.0,0.00016438,2]
[351400470,1738554350306,-527.87139466,0.00016438,2]
[351400471,1738554350327,-500.0,0.00016438,2]
[351400472,1738554350347,-500.0,0.00016438,2]
[351400473,1738554350368,-500.0,0.00016438,2]
[351400474,1738554350388,-500.0,0.00016438,2]
[351400475,1738554350409,-500.0,0.00016438,2]
[351400476,1738554350428,-500.0,0.00016438,2]
[351400477,1738554350448,-500.0,0.00016438,2]
[351400478,1738554350469,-500.0,0.00016438,2]
[351400479,1738554350493,-503.07183834,0.00016438,2]
[351400480,1738554350514,-186.28280467,0.00016438,2]
[351400481,1738554350537,-500.59208708,0.00016438,2]
[351400482,1738554350562,-501.35732158,0.00016438,2]
[351400483,1738554350584,-500.48503913,0.00016438,2]
[351400484,1738554350606,-500.0,0.00016438,2]
[351400485,1738554350628,-500.0,0.00016438,2]
[351400486,1738554350649,-500.0,0.00016438,2]
[351400487,1738554350670,-300.62987004,0.00016438,2]
[351400488,1738554350691,-500.0,0.00016438,2]
[351400489,1738554350711,-500.0,0.00016438,2]
[351400490,1738554350730,-522.14910479,0.00016438,2]
[351400491,1738554350752,-500.0,0.00016438,2]
[351400492,1738554350773,-500.0,0.00016438,2]
[351400493,1738554350794,-500.0,0.00016438,2]
[351400494,1738554350817,-421.33391447,0.00016438,2]
[351400496,1738554350838,-500.0,0.00016438,2]
[351400497,1738554350858,-500.0,0.00016438,2]
[351400498,1738554350879,-500.0,0.00016438,2]
[351400499,1738554350900,-500.0,0.00016438,2]
[351400500,1738554350920,-500.0,0.00016438,2]
[351400501,1738554350941,-500.0,0.00016438,2]
[351400502,1738554350967,-500.0,0.00016438,2]
[351400503,1738554350988,-500.0,0.00016438,2]
[351400504,1738554351008,-500.0,0.00016438,2]
[351400505,1738554351029,-500.0,0.00016438,2]
[351400506,1738554351051,-501.20345756,0.00016438,2]
[351400507,1738554351072,-500.77340113,0.00016438,2]
[351400508,1738554351092,-500.0,0.00016438,2]
[351400509,1738554351114,-500.0,0.00016438,2]
[351400510,1738554351135,-500.0,0.00016438,2]
[351400511,1738554351157,-500.0,0.00016438,2]
[351400512,1738554351178,-500.0,0.00016438,2]
[351400513,1738554351199,-557.96449907,0.00016438,2]
[351400514,1738554351220,-500.0,0.00016438,2]
[351400515,1738554351241,-500.0,0.00016438,2]
[351400516,1738554351265,-500.0,0.00016438,2]
[351400517,1738554351287,-500.0,0.00016438,2]
[351400518,1738554351315,-164.50066402,0.00016438,2]
[351400519,1738554351336,-500.94136165,0.00016438,2]
[351400520,1738554351358,-504.22762215,0.00016438,2]
[351400521,1738554351379,-500.0,0.00016438,2]
[351400522,1738554351402,-200.0,0.00016438,2]
[351400523,1738554351424,-514.38218086,0.00016438,2]
[351400524,1738554351446,-502.3526413,0.00016438,2]
[351400525,1738554351468,-500.0,0.00016438,2]
[351400526,1738554351496,-500.0,0.00016438,2]
[351400527,1738554351520,-500.0,0.00016438,2]
[351400528,1738554351543,-500.0,0.00016438,2]
[351400529,1738554351572,-500.0,0.00016438,2]
[351400530,1738554351599,-500.0,0.00016438,2]
[351400531,1738554351622,-510.03950299,0.00016438,2]
[351400532,1738554351645,-500.0,0.00016438,2]
[351400533,1738554351666,-500.0,0.00016438,2]
[351400534,1738554351687,-500.0,0.00016438,2]
[351400535,1738554351710,-115.62162951,0.00016438,2]
[351400554,1738554357085,-385.60830049,0.00016438,2]
[351400555,1738554357107,-500.0,0.00016438,2]
[351400556,1738554357130,-500.0,0.00016438,2]
[351400557,1738554357153,-500.0,0.00016438,2]
[351400558,1738554357174,-500.49202771,0.00016438,2]
[351400559,1738554357195,-500.0,0.00016438,2]
[351400560,1738554357220,-500.0,0.00016438,2]
[351400561,1738554357242,-500.0,0.00016438,2]
[351400562,1738554357264,-500.0,0.00016438,2]
[351400563,1738554357286,-500.0,0.00016438,2]
[351400564,1738554357310,-249.24565799,0.00016438,2]
[351400566,1738554357330,-500.0,0.00016438,2]
[351400567,1738554357351,-500.0,0.00016438,2]
[351400568,1738554357371,-431.87550414,0.00016438,2]
[351400569,1738554357392,-500.0,0.00016438,2]
[351400570,1738554357412,-321.73019168,0.00016438,2]
[351400571,1738554357432,-500.0,0.00016438,2]
[351400572,1738554357452,-500.0,0.00016438,2]
[351400573,1738554357473,-500.0,0.00016438,2]
[351400575,1738554357499,-194.02296438,0.00016438,2]
[351400576,1738554357520,-237.25574396,0.00016438,2]
[351400577,1738554357541,-500.0,0.00016438,2]
[351400578,1738554357566,-547.40715514,0.00016438,2]
[351400579,1738554357587,-549.33162169,0.00016438,2]
[351400580,1738554357608,-500.0,0.00016438,2]
[351400581,1738554357627,-500.82833501,0.00016438,2]
[351400582,1738554357647,-502.5780167,0.00016438,2]
[351400584,1738554357668,-500.0,0.00016438,2]
[351400585,1738554357688,-500.0,0.00016438,2]
[351400586,1738554357709,-500.0,0.00016438,2]
[351400587,1738554357730,-500.0,0.00016438,2]
[351400588,1738554357750,-500.0,0.00016438,2]
[351400589,1738554357771,-500.0,0.00016438,2]
[351400590,1738554357792,-500.0,0.00016438,2]
[351400591,1738554357816,-501.49681468,0.00016438,2]
[351400593,1738554357836,-500.0,0.00016438,2]
[351400594,1738554357857,-500.0,0.00016438,2]
[351400595,1738554357879,-500.82904676,0.00016438,2]
[351400596,1738554357900,-500.0,0.00016438,2]
[351400597,1738554357921,-571.3,0.00016438,2]
[351400599,1738554357942,-500.63353653,0.00016438,2]
[351400600,1738554357962,-540.91309947,0.00016438,2]
[351400601,1738554357982,-340.1928242,0.00016438,2]
[351400602,1738554358003,-500.0,0.00016438,2]
[351400603,1738554358024,-500.0,0.00016438,2]
[351400604,1738554358045,-500.0,0.00016438,2]
[351400605,1738554358069,-500.0,0.00016438,2]
[351400606,1738554358091,-500.0,0.00016438,2]
[351400607,1738554358112,-500.0,0.00016438,2]
[351400608,1738554358132,-500.0,0.00016438,2]
[351400610,1738554358152,-500.0,0.00016438,2]
[351400611,1738554358173,-500.0,0.00016438,2]
[351400613,1738554358193,-500.73042443,0.00016438,2]
[351400614,1738554358215,-500.0,0.00016438,2]
[351400615,1738554358236,-500.0,0.00016438,2]
[351400616,1738554358258,-500.0,0.00016438,2]
[351400617,1738554358279,-500.0,0.00016438,2]
[351400618,1738554358301,-500.0,0.00016438,2]
[351400619,1738554358326,-500.0,0.00016438,2]
[351400620,1738554358347,-519.47124006,0.00016438,2]
[351400621,1738554358370,-500.0,0.00016438,2]
[351400622,1738554358393,-599.07,0.00016438,2]
[351400623,1738554358415,-500.0,0.00016438,2]
[351400624,1738554358436,-500.0,0.00016438,2]
[351400625,1738554358458,-500.0,0.00016438,2]
[351400626,1738554358478,-500.0,0.00016438,2]
[351400627,1738554358500,-500.0,0.00016438,2]
[351400628,1738554358527,-500.0,0.00016438,2]
[351400629,1738554358549,-500.0,0.00016438,2]
[351400630,1738554358574,-500.0,0.00016438,2]
[351400631,1738554358596,-500.0,0.00016438,2]
[351400632,1738554358617,-500.0,0.00016438,2]
[351400633,1738554358637,-500.0,0.00016438,2]
[351400634,1738554358659,-500.0,0.00016438,2]
[351400635,1738554358682,-500.0,0.00016438,2]
[351400636,1738554358705,-500.0,0.00016438,2]
[351400637,1738554358726,-500.51308713,0.00016438,2]
[351400638,1738554358747,-506.14144107,0.00016438,2]
[351400639,1738554358769,-291.69114965,0.00016438,2]
[351400640,1738554358790,-500.0,0.00016438,2]
[351400641,1738554358814,-500.0,0.00016438,2]
[351400642,1738554358835,-500.0,0.00016438,2]
[351400643,1738554358856,-500.0,0.00016438,2]
[351400644,1738554358876,-500.0,0.00016438,2]
[351400645,1738554358897,-500.0,0.00016438,2]
[351400646,1738554358930,-500.0,0.00016438,2]
[351400648,1738554358954,-500.0,0.00016438,2]
[351400649,1738554358976,-155.07418814,0.00016438,2]
[351400650,1738554358998,-500.0,0.00016438,2]
[351400651,1738554359020,-500.0,0.00016438,2]
[351400652,1738554359042,-500.0,0.00016438,2]
[351400653,1738554359068,-500.0,0.00016438,2]
[351400654,1738554359092,-500.0,0.00016438,2]
[351400655,1738554359116,-500.0,0.00016438,2]
[351400656,1738554359142,-500.0,0.00016438,2]
[351400657,1738554359166,-500.0,0.00016438,2]
[351400658,1738554359190,-500.0,0.00016438,2]
[351400659,1738554359215,-500.0,0.00016438,2]
[351400660,1738554359240,-500.0,0.00016438,2]
[351400661,1738554359265,-500.0,0.00016438,2]
[351400662,1738554359288,-500.0,0.00016438,2]
[351400663,1738554359317,-582.45537853,0.00016438,2]
[351400665,1738554359340,-500.0,0.00016438,2]
[351400666,1738554359362,-500.0,0.00016438,2]
[351400667,1738554359385,-500.0,0.00016438,2]
[351400668,1738554359407,-276.59790935,0.00016438,2]
[351400670,1738554359429,-532.97,0.00016438,2]
[351400671,1738554359450,-500.0,0.00016438,2]
[351400672,1738554359471,-500.0,0.00016438,2]
[351400673,1738554359496,-500.0,0.00016438,2]
[351400674,1738554359517,-500.0,0.00016438,2]
[351400675,1738554359540,-500.0,0.00016438,2]
[351400676,1738554359565,-500.0,0.00016438,2]
[351400677,1738554359589,-500.0,0.00016438,2]
[351400678,1738554359613,-300.0,0.00016438,2]
[351400680,1738554359635,-500.0,0.00016438,2]
[351400681,1738554359657,-500.0,0.00016438,2]
[351400682,1738554359680,-500.0,0.00016438,2]
[351400683,1738554359702,-500.0,0.00016438,2]
[351400684,1738554359724,-500.0,0.00016438,2]
[351400685,1738554359745,-500.0,0.00016438,2]
[351400687,1738554359766,-500.0,0.00016438,2]
[351400688,1738554359787,-500.0,0.00016438,2]
[351400689,1738554359815,-500.0,0.00016438,2]
[351400690,1738554359836,-500.0,0.00016438,2]
[351400691,1738554359858,-500.0,0.00016438,2]
[351400692,1738554359880,-500.0,0.00016438,2]
[351400693,1738554359903,-502.87214297,0.00016438,2]
[351400695,1738554359925,-500.0,0.00016438,2]
[351400696,1738554359949,-500.0,0.00016438,2]
[351400697,1738554359971,-528.12589544,0.00016438,2]
[351400698,1738554359993,-500.0,0.00016438,2]
[351400699,1738554360016,-648.68178865,0.00016438,2]
[351400700,1738554360038,-500.0,0.00016438,2]
[351400701,1738554360063,-500.0,0.00016438,2]
[351400702,1738554360085,-500.0,0.00016438,2]
[351400703,1738554360108,-500.0,0.00016438,2]
[351400704,1738554360131,-500.0,0.00016438,2]
[351400705,1738554360154,-500.44987244,0.00016438,2]
[351400706,1738554360175,-500.0,0.00016438,2]
[351400707,1738554360198,-500.0,0.00016438,2]
[351400708,1738554360221,-500.0,0.00016438,2]
[351400709,1738554360243,-500.0,0.00016438,2]
[351400710,1738554360267,-500.0,0.00016438,2]
[351400711,1738554360290,-500.0,0.00016438,2]
[351400712,1738554360484,-500.0,0.00016438,2]
[351400713,1738554360508,-500.0,0.00016438,2]
[351400714,1738554360530,-500.0,0.00016438,2]
[351400715,1738554360558,-500.0,0.00016438,2]
[351400716,1738554360584,-500.0,0.00016438,2]
[351400717,1738554360608,-500.0,0.00016438,2]
[351400718,1738554360632,-585.80280478,0.00016438,2]
[351400719,1738554360656,-500.0,0.00016438,2]
[351400720,1738554360681,-500.0,0.00016438,2]
[351400721,1738554360706,-500.0,0.00016438,2]
[351400722,1738554360729,-500.0,0.00016438,2]
[351400723,1738554360752,-500.0,0.00016438,2]
[351400724,1738554360776,-500.0,0.00016438,2]
[351400725,1738554360799,-501.05081765,0.00016438,2]
[351400726,1738554360824,-500.0,0.00016438,2]
[351400727,1738554360846,-500.0,0.00016438,2]
[351400728,1738554360867,-500.0,0.00016438,2]
[351400729,1738554360889,-500.0,0.00016438,2]
[351400730,1738554360911,-500.0,0.00016438,2]
[351400731,1738554360933,-663.69,0.00016438,2]
[351400732,1738554360955,-524.23984873,0.00016438,2]
[351400733,1738554360976,-500.0,0.00016438,2]
[351400734,1738554360997,-500.0,0.00016438,2]
[351400735,1738554361019,-500.0,0.00016438,2]
[351400736,1738554361040,-500.0,0.00016438,2]
[351400737,1738554361066,-500.0,0.00016438,2]
[351400738,1738554361087,-500.0,0.00016438,2]
[351400739,1738554361109,-507.27029917,0.00016438,2]